[Event "Early-Titled-Tuesday-Blitz-February-13-2024"]
[Site "Chess.com"]
[Date "2024.02.13"]
[Round "11"]
[White "Oleksandr_Bortnyk"]
[Black "Matibar"]
[Result "1-0"]
[WhiteElo "3046"]
[BlackElo "2765"]
[TimeControl "180+1"]
[EndTime "10:10:58 PST"]
[Termination "Oleksandr_Bortnyk won on time"]

1. e4 {[%clk 0:02:58.7]} 1... e5 {[%clk 0:02:59.8]} 2. Bc4 {[%clk 0:02:55.8]}
2... Nf6 {[%clk 0:02:58.7]} 3. d3 {[%clk 0:02:56]} 3... Bc5 {[%clk 0:02:57.1]}
4. Nc3 {[%clk 0:02:55.6]} 4... c6 {[%clk 0:02:53.1]} 5. Nf3 {[%clk 0:02:53.2]}
5... d6 {[%clk 0:02:48.6]} 6. Be3 {[%clk 0:02:50.9]} 6... Bxe3 {[%clk
0:02:45.4]} 7. fxe3 {[%clk 0:02:51.8]} 7... O-O {[%clk 0:02:43.4]} 8. O-O {[%clk
0:02:52]} 8... Be6 {[%clk 0:02:39.8]} 9. Bb3 {[%clk 0:02:48.6]} 9... Nbd7 {[%clk
0:02:37.3]} 10. d4 {[%clk 0:02:41.3]} 10... Bxb3 {[%clk 0:02:36]} 11. axb3
{[%clk 0:02:42.2]} 11... Qe7 {[%clk 0:02:35.4]} 12. Qd3 {[%clk 0:02:36.2]} 12...
a6 {[%clk 0:02:33.6]} 13. Rad1 {[%clk 0:02:24.6]} 13... Rad8 {[%clk 0:02:33.2]}
14. Nh4 {[%clk 0:02:18]} 14... g6 {[%clk 0:02:32.7]} 15. Nf3 {[%clk 0:02:18.4]}
15... Nh5 {[%clk 0:02:22.3]} 16. Qc4 {[%clk 0:02:09.6]} 16... Ndf6 {[%clk
0:01:24.6]} 17. Qb4 {[%clk 0:01:59.9]} 17... exd4 {[%clk 0:01:19.9]} 18. exd4
{[%clk 0:01:49.6]} 18... Nxe4 {[%clk 0:01:13.1]} 19. Rde1 {[%clk 0:01:38.2]}
19... f5 {[%clk 0:01:11.5]} 20. d5 {[%clk 0:01:32.2]} 20... c5 {[%clk
0:01:06.3]} 21. Qb6 {[%clk 0:01:30.7]} 21... Rde8 {[%clk 0:00:55.7]} 22. Nd2
{[%clk 0:01:28.9]} 22... Qe5 {[%clk 0:00:51.7]} 23. Nf3 {[%clk 0:01:16.9]} 23...
Qf6 {[%clk 0:00:48.2]} 24. Qxb7 {[%clk 0:01:13.3]} 24... Nxc3 {[%clk 0:00:44.5]}
25. bxc3 {[%clk 0:01:11.4]} 25... Qxc3 {[%clk 0:00:44.5]} 26. Rxe8 {[%clk
0:00:55.9]} 26... Rxe8 {[%clk 0:00:44.1]} 27. Qd7 {[%clk 0:00:56.7]} 27... Qe3+
{[%clk 0:00:43.7]} 28. Kh1 {[%clk 0:00:56.4]} 28... Qe2 {[%clk 0:00:33.2]} 29.
Rg1 {[%clk 0:00:48.9]} 29... Qe7 {[%clk 0:00:31.9]} 30. Qa4 {[%clk 0:00:46.6]}
30... Nf6 {[%clk 0:00:27.3]} 31. Qxa6 {[%clk 0:00:42.5]} 31... Ng4 {[%clk
0:00:23.7]} 32. h3 {[%clk 0:00:37.3]} 32... Nf2+ {[%clk 0:00:20.5]} 33. Kh2
{[%clk 0:00:37.9]} 33... Ne4 {[%clk 0:00:20.5]} 34. Ra1 {[%clk 0:00:32.7]} 34...
Qf6 {[%clk 0:00:19.4]} 35. Qb5 {[%clk 0:00:27.9]} 35... Re7 {[%clk 0:00:18.7]}
36. Ra8+ {[%clk 0:00:28]} 36... Kg7 {[%clk 0:00:19]} 37. Qb8 {[%clk 0:00:28.3]}
37... Kh6 {[%clk 0:00:19]} 38. h4 {[%clk 0:00:18.8]} 38... Kh5 {[%clk
0:00:08.7]} 39. Qf8 {[%clk 0:00:15.6]} 39... Qxf8 {[%clk 0:00:08.3]} 40. Rxf8
{[%clk 0:00:16.5]} 40... h6 {[%clk 0:00:08.6]} 41. Kh3 {[%clk 0:00:08.2]} 41...
Nf2+ {[%clk 0:00:08]} 42. Kg3 {[%clk 0:00:06.5]} 42... Ng4 {[%clk 0:00:08.5]}
43. Rd8 {[%clk 0:00:05.2]} 43... Re2 {[%clk 0:00:07.6]} 44. Rxd6 {[%clk
0:00:04.8]} 44... Rxc2 {[%clk 0:00:07.2]} 45. Rc6 {[%clk 0:00:03.3]} 45... Ne3
{[%clk 0:00:06.7]} 46. d6 {[%clk 0:00:03.9]} 46... Nxg2 {[%clk 0:00:02.7]} 47.
d7 {[%clk 0:00:03.9]} 47... f4+ {[%clk 0:00:02.8]} 48. Kh3 {[%clk 0:00:04.5]}
48... g5 {[%clk 0:00:03]} 49. hxg5 {[%clk 0:00:04.7]} 49... hxg5 {[%clk
0:00:03.9]} 50. Nxg5 {[%clk 0:00:05.3]} 50... Rc3+ {[%clk 0:00:02.1]} 51. Kxg2
{[%clk 0:00:04.8]} 51... Rd3 {[%clk 0:00:03]} 52. Ne6 {[%clk 0:00:04.1]} 52...
Rxd7 {[%clk 0:00:03.2]} 53. Rxc5+ {[%clk 0:00:04.5]} 53... Kg4 {[%clk
0:00:03.5]} 54. Rg5+ {[%clk 0:00:04.8]} 54... Kh4 {[%clk 0:00:02.9]} 55. Rf5
{[%clk 0:00:05.5]} 55... Rd2+ {[%clk 0:00:03.2]} 56. Kf1 {[%clk 0:00:04.9]}
56... Rd3 {[%clk 0:00:02.6]} 57. Rxf4+ {[%clk 0:00:05.2]} 57... Kg3 {[%clk
0:00:03.1]} 58. Rb4 {[%clk 0:00:05.9]} 58... Kf3 {[%clk 0:00:02.9]} 59. Ng5+
{[%clk 0:00:05.5]} 59... Ke3 {[%clk 0:00:03.1]} 60. Ke1 {[%clk 0:00:05.8]} 60...
Rc3 {[%clk 0:00:03]} 61. Kd1 {[%clk 0:00:05.9]} 61... Kd3 {[%clk 0:00:02.7]} 62.
Ne4 {[%clk 0:00:05.1]} 62... Rc8 {[%clk 0:00:02.8]} 63. Nd2 {[%clk 0:00:04.7]}
63... Kc3 {[%clk 0:00:02.8]} 64. Rc4+ {[%clk 0:00:05.2]} 64... Rxc4 {[%clk
0:00:01.9]} 65. bxc4 {[%clk 0:00:06.1]} 1-0

[Event "Early-Titled-Tuesday-Blitz-February-13-2024"]
[Site "Chess.com"]
[Date "2024.02.13"]
[Round "11"]
[White "Manukyan_Artak"]
[Black "BallottiLuca"]
[Result "1/2-1/2"]
[WhiteElo "2532"]
[BlackElo "2402"]
[TimeControl "180+1"]
[EndTime "10:10:58 PST"]
[Termination "Game drawn by stalemate"]

1. e4 {[%clk 0:03:00.9]} 1... c5 {[%clk 0:02:59.8]} 2. Nf3 {[%clk 0:03:00.7]}
2... Nc6 {[%clk 0:02:59.4]} 3. c3 {[%clk 0:03:00.7]} 3... d5 {[%clk 0:02:55.6]}
4. exd5 {[%clk 0:03:00.9]} 4... Qxd5 {[%clk 0:02:56.5]} 5. d4 {[%clk 0:03:00.7]}
5... Bg4 {[%clk 0:02:54.3]} 6. Be2 {[%clk 0:02:59.4]} 6... cxd4 {[%clk
0:02:53.5]} 7. cxd4 {[%clk 0:02:59.3]} 7... e6 {[%clk 0:02:52.5]} 8. Nc3 {[%clk
0:02:59.4]} 8... Qa5 {[%clk 0:02:51.1]} 9. h3 {[%clk 0:02:58.2]} 9... Bh5 {[%clk
0:02:49.5]} 10. O-O {[%clk 0:02:57.9]} 10... Nf6 {[%clk 0:02:48]} 11. Qb3 {[%clk
0:02:56]} 11... Qb4 {[%clk 0:02:45.6]} 12. Nb5 {[%clk 0:02:55]} 12... Rc8 {[%clk
0:02:35.1]} 13. Rd1 {[%clk 0:02:42.3]} 13... Qxb3 {[%clk 0:02:29.6]} 14. axb3
{[%clk 0:02:43.2]} 14... a6 {[%clk 0:02:28.7]} 15. Nc3 {[%clk 0:02:39.7]} 15...
Be7 {[%clk 0:02:20.3]} 16. d5 {[%clk 0:02:33.8]} 16... Nxd5 {[%clk 0:02:15.6]}
17. Nxd5 {[%clk 0:02:34.7]} 17... exd5 {[%clk 0:02:16.5]} 18. Rxd5 {[%clk
0:02:34.8]} 18... Bg6 {[%clk 0:02:15.3]} 19. Bf4 {[%clk 0:02:31]} 19... O-O
{[%clk 0:02:14.8]} 20. Rd7 {[%clk 0:02:26.8]} 20... Be4 {[%clk 0:01:51.9]} 21.
Bc4 {[%clk 0:02:13.1]} 21... Bf6 {[%clk 0:01:49.3]} 22. Re1 {[%clk 0:02:01.3]}
22... Bxf3 {[%clk 0:01:47.4]} 23. gxf3 {[%clk 0:02:02.2]} 23... b5 {[%clk
0:01:30.9]} 24. Bd5 {[%clk 0:01:58.6]} 24... Nd4 {[%clk 0:01:28.3]} 25. Bd6
{[%clk 0:01:58.4]} 25... Rfd8 {[%clk 0:01:12.1]} 26. Bxf7+ {[%clk 0:01:58.3]}
26... Kh8 {[%clk 0:01:10.9]} 27. Rxd8+ {[%clk 0:01:58.7]} 27... Rxd8 {[%clk
0:01:11.3]} 28. Kg2 {[%clk 0:01:59.5]} 28... g6 {[%clk 0:01:02]} 29. Be7 {[%clk
0:01:54.5]} 29... Bxe7 {[%clk 0:00:58.7]} 30. Rxe7 {[%clk 0:01:55.4]} 30... Kg7
{[%clk 0:00:46.7]} 31. Bd5+ {[%clk 0:01:50.6]} 31... Kh6 {[%clk 0:00:43.6]} 32.
Re5 {[%clk 0:01:40]} 32... Nf5 {[%clk 0:00:40.8]} 33. f4 {[%clk 0:01:34.9]}
33... Nh4+ {[%clk 0:00:19.9]} 34. Kg3 {[%clk 0:01:29.3]} 34... Nf5+ {[%clk
0:00:20.1]} 35. Kg4 {[%clk 0:01:29.8]} 35... Rc8 {[%clk 0:00:18.5]} 36. Be6
{[%clk 0:01:24.3]} 36... Rc2 {[%clk 0:00:18.1]} 37. Bxf5 {[%clk 0:01:23.5]}
37... gxf5+ {[%clk 0:00:19]} 38. Kxf5 {[%clk 0:01:21.5]} 38... Rxf2 {[%clk
0:00:19.6]} 39. Re6+ {[%clk 0:01:09.8]} 39... Kg7 {[%clk 0:00:20]} 40. Rxa6
{[%clk 0:01:10.7]} 40... Rxb2 {[%clk 0:00:20.3]} 41. Kg5 {[%clk 0:01:01.6]}
41... Rxb3 {[%clk 0:00:19.9]} 42. Ra7+ {[%clk 0:00:58.5]} 42... Kg8 {[%clk
0:00:14]} 43. Kf6 {[%clk 0:00:58.5]} 43... h5 {[%clk 0:00:07.2]} 44. h4 {[%clk
0:00:56.1]} 44... Re3 {[%clk 0:00:05.3]} 45. Rg7+ {[%clk 0:00:51]} 45... Kh8
{[%clk 0:00:05]} 46. Rb7 {[%clk 0:00:49.7]} 46... Kg8 {[%clk 0:00:04.4]} 47.
Rxb5 {[%clk 0:00:45.7]} 47... Re4 {[%clk 0:00:04.8]} 48. Kg5 {[%clk 0:00:39.3]}
48... Ra4 {[%clk 0:00:04.1]} 49. f5 {[%clk 0:00:32.8]} 49... Kf7 {[%clk
0:00:03.8]} 50. Rb7+ {[%clk 0:00:29.3]} 50... Kf8 {[%clk 0:00:03.7]} 51. Kxh5
{[%clk 0:00:29.3]} 51... Ra6 {[%clk 0:00:03.6]} 52. Kg5 {[%clk 0:00:28.6]} 52...
Rc6 {[%clk 0:00:03]} 53. h5 {[%clk 0:00:28.7]} 53... Kg8 {[%clk 0:00:03.3]} 54.
h6 {[%clk 0:00:28.6]} 54... Kh8 {[%clk 0:00:02.4]} 55. Re7 {[%clk 0:00:27.9]}
55... Ra6 {[%clk 0:00:02.4]} 56. Re6 {[%clk 0:00:28]} 56... Ra5 {[%clk
0:00:02.3]} 57. Kg6 {[%clk 0:00:26]} 57... Ra8 {[%clk 0:00:02.7]} 58. f6 {[%clk
0:00:26.4]} 58... Rg8+ {[%clk 0:00:02.9]} 59. Kh5 {[%clk 0:00:26.8]} 59... Rf8
{[%clk 0:00:03.3]} 60. Re7 {[%clk 0:00:22.6]} 60... Rg8 {[%clk 0:00:02]} 61. Rg7
{[%clk 0:00:20.9]} 61... Rf8 {[%clk 0:00:01.9]} 62. Kg6 {[%clk 0:00:20.5]} 62...
Rxf6+ {[%clk 0:00:02.2]} 63. Kg5 {[%clk 0:00:17.7]} 63... Rxh6 {[%clk 0:00:02]}
64. Kxh6 {[%clk 0:00:15.8]} 1/2-1/2

[Event "Early-Titled-Tuesday-Blitz-February-13-2024"]
[Site "Chess.com"]
[Date "2024.02.13"]
[Round "11"]
[White "Msb2"]
[Black "Polish_fighter3000"]
[Result "0-1"]
[WhiteElo "3009"]
[BlackElo "3078"]
[TimeControl "180+1"]
[EndTime "10:11:03 PST"]
[Termination "Polish_fighter3000 won by checkmate"]

1. d4 {[%clk 0:03:00.9]} 1... Nf6 {[%clk 0:03:00.1]} 2. c4 {[%clk 0:03:01.6]}
2... e6 {[%clk 0:03:00.4]} 3. Nc3 {[%clk 0:03:02.3]} 3... Bb4 {[%clk 0:03:00]}
4. e3 {[%clk 0:03:02.5]} 4... O-O {[%clk 0:03:00]} 5. Bd2 {[%clk 0:03:03.1]}
5... d6 {[%clk 0:02:51]} 6. Bd3 {[%clk 0:03:01]} 6... e5 {[%clk 0:02:49.9]} 7.
Nge2 {[%clk 0:03:01.2]} 7... Re8 {[%clk 0:02:49.3]} 8. O-O {[%clk 0:03:01.3]}
8... c6 {[%clk 0:02:44.8]} 9. Qc2 {[%clk 0:02:53.7]} 9... Ba5 {[%clk 0:02:25.4]}
10. Ng3 {[%clk 0:02:50.8]} 10... Nbd7 {[%clk 0:02:22.3]} 11. a3 {[%clk
0:02:50.4]} 11... Bc7 {[%clk 0:02:20.3]} 12. Rae1 {[%clk 0:02:47.5]} 12... h5
{[%clk 0:02:15.2]} 13. f4 {[%clk 0:02:42]} 13... Nf8 {[%clk 0:01:57.1]} 14. Nge4
{[%clk 0:02:26]} 14... Nxe4 {[%clk 0:01:37.5]} 15. Bxe4 {[%clk 0:02:26.9]} 15...
exd4 {[%clk 0:01:30.1]} 16. exd4 {[%clk 0:02:26.7]} 16... Bb6 {[%clk 0:01:28.7]}
17. Be3 {[%clk 0:02:20.8]} 17... f5 {[%clk 0:01:25]} 18. Bxf5 {[%clk 0:02:09]}
18... Rxe3 {[%clk 0:01:25.2]} 19. Rxe3 {[%clk 0:01:59.4]} 19... Bxd4 {[%clk
0:01:25.6]} 20. Nd1 {[%clk 0:01:47.9]} 20... Qf6 {[%clk 0:00:49.7]} 21. Bxc8
{[%clk 0:01:44]} 21... Rxc8 {[%clk 0:00:50.6]} 22. Kh1 {[%clk 0:01:39.1]} 22...
Bxe3 {[%clk 0:00:50.6]} 23. Nxe3 {[%clk 0:01:40]} 23... Re8 {[%clk 0:00:50.5]}
24. Qd2 {[%clk 0:01:40]} 24... Ne6 {[%clk 0:00:40.5]} 25. Qxd6 {[%clk
0:01:31.7]} 25... Nxf4 {[%clk 0:00:25.3]} 26. Qxf6 {[%clk 0:01:10.3]} 26... gxf6
{[%clk 0:00:26.2]} 27. Rxf4 {[%clk 0:01:07.9]} 27... Rxe3 {[%clk 0:00:26.5]} 28.
Kg1 {[%clk 0:01:08.6]} 28... Kg7 {[%clk 0:00:26]} 29. Rd4 {[%clk 0:00:49.5]}
29... Rb3 {[%clk 0:00:25]} 30. Rd2 {[%clk 0:00:49.7]} 30... Kg6 {[%clk
0:00:22.4]} 31. Kf2 {[%clk 0:00:50.2]} 31... h4 {[%clk 0:00:20.4]} 32. Ke1
{[%clk 0:00:42.8]} 32... a5 {[%clk 0:00:12.4]} 33. Kd1 {[%clk 0:00:42.6]} 33...
a4 {[%clk 0:00:08]} 34. Kc2 {[%clk 0:00:42.5]} 34... Re3 {[%clk 0:00:03.1]} 35.
Rf2 {[%clk 0:00:42.8]} 35... f5 {[%clk 0:00:03]} 36. Kd2 {[%clk 0:00:43.4]}
36... Rb3 {[%clk 0:00:03]} 37. Kc2 {[%clk 0:00:44]} 37... Kg5 {[%clk 0:00:03.7]}
38. Re2 {[%clk 0:00:42.6]} 38... f4 {[%clk 0:00:03.6]} 39. Re7 {[%clk
0:00:37.1]} 39... h3 {[%clk 0:00:03.9]} 40. gxh3 {[%clk 0:00:25.3]} 40... Rxh3
{[%clk 0:00:04.8]} 41. Rxb7 {[%clk 0:00:25.9]} 41... Kg4 {[%clk 0:00:05.3]} 42.
Rc7 {[%clk 0:00:21.2]} 42... f3 {[%clk 0:00:03.2]} 43. Kd3 {[%clk 0:00:21.5]}
43... Rxh2 {[%clk 0:00:02.6]} 44. Rxc6 {[%clk 0:00:18.5]} 44... Rxb2 {[%clk
0:00:03.1]} 45. Rg6+ {[%clk 0:00:11.4]} 45... Kf4 {[%clk 0:00:03]} 46. Rf6+
{[%clk 0:00:11.9]} 46... Kg3 {[%clk 0:00:03.2]} 47. Rg6+ {[%clk 0:00:12.6]}
47... Kf2 {[%clk 0:00:03.4]} 48. c5 {[%clk 0:00:13.2]} 48... Rb3+ {[%clk
0:00:03.5]} 49. Kd2 {[%clk 0:00:11.7]} 49... Rxa3 {[%clk 0:00:03.8]} 50. c6
{[%clk 0:00:12.2]} 50... Ra2+ {[%clk 0:00:04.3]} 51. Kd3 {[%clk 0:00:12.8]}
51... Ra3+ {[%clk 0:00:03]} 52. Kd2 {[%clk 0:00:13.1]} 52... Re3 {[%clk
0:00:02.6]} 53. c7 {[%clk 0:00:04.1]} 53... Re8 {[%clk 0:00:03.1]} 54. Rc6
{[%clk 0:00:04.4]} 54... Rc8 {[%clk 0:00:03.6]} 55. Kd3 {[%clk 0:00:03.8]} 55...
a3 {[%clk 0:00:03.7]} 56. Ke4 {[%clk 0:00:03.3]} 56... a2 {[%clk 0:00:02.4]} 57.
Ra6 {[%clk 0:00:04]} 57... Rxc7 {[%clk 0:00:02.2]} 58. Rxa2+ {[%clk 0:00:04.7]}
58... Kg3 {[%clk 0:00:02.8]} 59. Ra8 {[%clk 0:00:04.1]} 59... Re7+ {[%clk
0:00:03.2]} 60. Kd3 {[%clk 0:00:04.7]} 60... f2 {[%clk 0:00:03.7]} 61. Rg8+
{[%clk 0:00:04.5]} 61... Kf3 {[%clk 0:00:04.2]} 62. Rf8+ {[%clk 0:00:05.4]}
62... Kg2 {[%clk 0:00:04.8]} 63. Kd2 {[%clk 0:00:06.3]} 63... f1=Q {[%clk
0:00:04.4]} 64. Rg8+ {[%clk 0:00:07.2]} 64... Kf2 {[%clk 0:00:04.8]} 65. Rh8
{[%clk 0:00:08.1]} 65... Qe2+ {[%clk 0:00:04.8]} 66. Kc3 {[%clk 0:00:09]} 66...
Qe5+ {[%clk 0:00:05.1]} 67. Kb4 {[%clk 0:00:09.9]} 67... Qxh8 {[%clk 0:00:05.8]}
68. Kc5 {[%clk 0:00:10]} 68... Qd8 {[%clk 0:00:06.7]} 69. Kb5 {[%clk 0:00:10.9]}
69... Rc7 {[%clk 0:00:07.3]} 70. Kb4 {[%clk 0:00:11.8]} 70... Qb8+ {[%clk
0:00:07.8]} 71. Ka4 {[%clk 0:00:09.2]} 71... Ra7# {[%clk 0:00:08.7]} 0-1

[Event "Early-Titled-Tuesday-Blitz-February-13-2024"]
[Site "Chess.com"]
[Date "2024.02.13"]
[Round "11"]
[White "SpeedofLight0"]
[Black "Alexander_Donchenko"]
[Result "0-1"]
[WhiteElo "3048"]
[BlackElo "2936"]
[TimeControl "180+1"]
[EndTime "10:11:03 PST"]
[Termination "Alexander_Donchenko won on time"]

1. d4 {[%clk 0:03:00.9]} 1... Nf6 {[%clk 0:02:59.8]} 2. Nc3 {[%clk 0:03:00.8]}
2... d5 {[%clk 0:02:57.6]} 3. Bf4 {[%clk 0:03:01.2]} 3... c5 {[%clk 0:02:57.4]}
4. e3 {[%clk 0:03:01.4]} 4... cxd4 {[%clk 0:02:57.4]} 5. exd4 {[%clk 0:03:02.3]}
5... Nc6 {[%clk 0:02:57]} 6. Nb5 {[%clk 0:03:00.6]} 6... e5 {[%clk 0:02:54.9]}
7. dxe5 {[%clk 0:03:00.6]} 7... a6 {[%clk 0:02:41.4]} 8. Nd4 {[%clk 0:02:12]}
8... Ne4 {[%clk 0:02:38.8]} 9. Ngf3 {[%clk 0:02:10.9]} 9... Bb4+ {[%clk
0:02:23.2]} 10. c3 {[%clk 0:02:10.6]} 10... Nxc3 {[%clk 0:02:23.8]} 11. bxc3
{[%clk 0:02:10.7]} 11... Bxc3+ {[%clk 0:02:24.7]} 12. Bd2 {[%clk 0:02:10.6]}
12... Bxd4 {[%clk 0:02:23.7]} 13. Nxd4 {[%clk 0:02:05.7]} 13... Nxd4 {[%clk
0:02:24.6]} 14. Bd3 {[%clk 0:02:03.6]} 14... O-O {[%clk 0:02:22.9]} 15. Qh5
{[%clk 0:01:48.7]} 15... g6 {[%clk 0:02:22.3]} 16. Qh6 {[%clk 0:01:48.6]} 16...
Bf5 {[%clk 0:02:19]} 17. Bxf5 {[%clk 0:01:41.2]} 17... Nxf5 {[%clk 0:02:18.1]}
18. Qf4 {[%clk 0:01:41]} 18... Re8 {[%clk 0:02:12.1]} 19. O-O {[%clk 0:01:40.7]}
19... Qh4 {[%clk 0:02:12]} 20. Rab1 {[%clk 0:01:35.5]} 20... Qxf4 {[%clk
0:02:09.4]} 21. Bxf4 {[%clk 0:01:36.4]} 21... b5 {[%clk 0:02:09.6]} 22. Rfd1
{[%clk 0:01:34.7]} 22... Red8 {[%clk 0:02:05.2]} 23. Bg5 {[%clk 0:01:33.3]}
23... Rd7 {[%clk 0:02:03.8]} 24. Rbc1 {[%clk 0:01:32.8]} 24... h6 {[%clk
0:02:01]} 25. Bf6 {[%clk 0:01:32.8]} 25... Ng7 {[%clk 0:01:56.5]} 26. Rc5 {[%clk
0:01:29.2]} 26... d4 {[%clk 0:01:56.6]} 27. Rdc1 {[%clk 0:01:29.2]} 27... Ne8
{[%clk 0:01:51.3]} 28. Rc8 {[%clk 0:01:27.2]} 28... Rxc8 {[%clk 0:01:50.4]} 29.
Rxc8 {[%clk 0:01:28.1]} 29... Kf8 {[%clk 0:01:50.3]} 30. Kf1 {[%clk 0:01:27.6]}
30... d3 {[%clk 0:01:39]} 31. Ke1 {[%clk 0:01:27.6]} 31... Rc7 {[%clk
0:01:39.2]} 32. Ra8 {[%clk 0:01:09.5]} 32... Rc1+ {[%clk 0:01:17.7]} 33. Kd2
{[%clk 0:01:09.4]} 33... Rc2+ {[%clk 0:01:18.6]} 34. Kxd3 {[%clk 0:01:09.6]}
34... Rxa2 {[%clk 0:01:19.4]} 35. Bh4 {[%clk 0:01:08.7]} 35... g5 {[%clk
0:01:17.6]} 36. Bg3 {[%clk 0:01:08]} 36... Ke7 {[%clk 0:01:17]} 37. f4 {[%clk
0:01:04.6]} 37... Ng7 {[%clk 0:01:13]} 38. Ke4 {[%clk 0:00:58.6]} 38... gxf4
{[%clk 0:01:07.6]} 39. Bxf4 {[%clk 0:00:55.7]} 39... Ne6 {[%clk 0:01:01.6]} 40.
Bxh6 {[%clk 0:00:48]} 40... Rxg2 {[%clk 0:01:00.5]} 41. Ra7+ {[%clk 0:00:48.4]}
41... Ke8 {[%clk 0:01:00.2]} 42. Be3 {[%clk 0:00:36.9]} 42... Rxh2 {[%clk
0:00:52.7]} 43. Rxa6 {[%clk 0:00:36]} 43... Rh4+ {[%clk 0:00:50.7]} 44. Kf5
{[%clk 0:00:28.5]} 44... Rh3 {[%clk 0:00:45.7]} 45. Ke4 {[%clk 0:00:24.4]} 45...
Rh4+ {[%clk 0:00:37.5]} 46. Kf5 {[%clk 0:00:24.6]} 46... Rc4 {[%clk 0:00:38]}
47. Rb6 {[%clk 0:00:23.1]} 47... Nc7 {[%clk 0:00:35.5]} 48. Bg5 {[%clk
0:00:20.3]} 48... Kd7 {[%clk 0:00:33.8]} 49. Rf6 {[%clk 0:00:19.2]} 49... Ke8
{[%clk 0:00:33.7]} 50. Rb6 {[%clk 0:00:18.4]} 50... b4 {[%clk 0:00:30]} 51. Bd2
{[%clk 0:00:15]} 51... Nd5 {[%clk 0:00:17.8]} 52. Rb5 {[%clk 0:00:15]} 52... Rd4
{[%clk 0:00:17.3]} 53. Bg5 {[%clk 0:00:13.2]} 53... Kd7 {[%clk 0:00:17]} 54.
Rb7+ {[%clk 0:00:10.2]} 54... Kc6 {[%clk 0:00:17.5]} 55. Rxf7 {[%clk 0:00:10.5]}
55... b3 {[%clk 0:00:18.1]} 56. Bc1 {[%clk 0:00:08.4]} 56... Rc4 {[%clk
0:00:18.2]} 57. Ba3 {[%clk 0:00:08.2]} 57... Ra4 {[%clk 0:00:18.2]} 58. Bc1
{[%clk 0:00:07.2]} 58... Ra1 {[%clk 0:00:18.1]} 59. Bb2 {[%clk 0:00:06.8]} 59...
Ra2 {[%clk 0:00:11]} 60. Bc1 {[%clk 0:00:05.6]} 60... Rc2 {[%clk 0:00:11.6]} 61.
Ba3 {[%clk 0:00:06.1]} 61... Ne3+ {[%clk 0:00:12]} 62. Ke4 {[%clk 0:00:05.5]}
62... Nc4 {[%clk 0:00:12.9]} 63. Rf6+ {[%clk 0:00:03.9]} 63... Kb5 {[%clk
0:00:13]} 64. Be7 {[%clk 0:00:02.6]} 64... b2 {[%clk 0:00:12.7]} 65. Rf1 {[%clk
0:00:02.3]} 65... Rc1 {[%clk 0:00:12.9]} 66. Rf8 {[%clk 0:00:02]} 66... b1=Q+
{[%clk 0:00:12.6]} 67. Kd5 {[%clk 0:00:01.3]} 67... Qd3+ {[%clk 0:00:12.3]} 68.
Ke6 {[%clk 0:00:01.8]} 68... Re1 {[%clk 0:00:09]} 69. Bf6 {[%clk 0:00:01.6]}
69... Nxe5 {[%clk 0:00:08.2]} 0-1